bitfinex-derivatives/quotes_ETHF0:USTF0_20250317
["timestamp","ask_amount","ask_price","bid_price","bid_amount"]
[1742196538059,4.6107,1900.9,1900.8,1.3782]
[1742196538963,5.66291,1900.9,1900.8,1.3782]
[1742196541765,6.01730003,1900.9,1900.8,1.3782]
[1742196544271,2.80950003,1900.9,1900.8,2.43047]
[1742196544665,2.80950003,1900.9,1900.8,1.3782]
[1742196546268,3.79739003,1900.9,1900.8,2.43047]
[1742196546666,0.35439003,1900.9,1900.8,2.43047]
[1742196546871,3.79739003,1900.9,1900.8,2.43047]
[1742196547572,3.443,1900.9,1900.8,2.43047]
[1742196548174,34.08589003,1901.1,1901.0,1.05216]
[1742196548369,37.52889003,1901.1,1901.0,1.05216]
[1742196548577,34.32109003,1901.1,1901.0,1.05216]
[1742196548769,34.32109003,1901.1,1901.0,2.44106]
[1742196548770,29.178,1901.1,1901.0,2.44106]
[1742196549068,3.443,1901.2,1901.1,1.0521]
[1742196549277,3.443,1901.3,1901.2,1.05205]
[1742196549469,3.443,1901.3,1901.2,1.77205]
[1742196551675,3.2078,1901.4,1901.2,1.77205]
[1742196551870,3.443,1901.4,1901.3,3.11539]
[1742196555582,4.49494,1901.4,1901.3,3.11539]
[1742196555778,4.7888,1901.4,1901.3,2.45149]
[1742196556177,4.87637114,1901.4,1901.3,2.45149]
[1742196556782,4.87637307,1901.4,1901.3,2.45149]
[1742196557383,5.92831307,1901.4,1901.3,2.45149]
[1742196557579,4.87637307,1901.4,1901.3,2.45149]
[1742196558486,4.7888,1901.4,1901.3,2.45149]
[1742196560984,3.443,1901.4,1901.3,2.45149]
[1742196562082,3.443,1901.4,1901.0,3.2078]
[1742196562382,6.0002,1901.3,1901.1,1.3194]
[1742196562572,1.4065,1901.2,1901.1,2.3715]
[1742196564682,3.2078,1901.3,1901.2,1.05205]
[1742196564886,3.442,1901.3,1901.2,3.83565]
[1742196570891,1.3871,1901.4,1901.3,1.05199]
[1742196571087,4.8291,1901.4,1901.3,2.43049]
[1742196573484,5.88104,1901.4,1901.3,1.3785]
[1742196573685,1.05202,1901.3,1901.1,1.05207]
[1742196573886,2.7993,1901.3,1901.2,1.05205]
[1742196574284,3.85133,1901.3,1901.1,2.48826]
[1742196574485,1.05207,1901.2,1901.0,1.05212]
[1742196574690,4.49411,1901.1,1901.0,1.05215]
[1742196575182,3.442,1901.1,1900.9,0.6774]
[1742196575483,4.95446,1901.0,1900.8,1.05223]
[1742196575684,5.30885003,1901.0,1900.8,1.05223]
[1742196575879,5.99185003,1901.0,1900.8,1.05223]
[1742196576693,5.99185003,1901.0,1900.9,1.05221]
[1742196576895,1.05221,1900.9,1900.8,1.05224]
[1742196577090,1.05221,1900.9,1900.7,1.06020097]
[1742196577288,3.442,1900.8,1900.7,1.06020097]
[1742196582399,3.442,1900.8,1900.7,0.00790097]
[1742196583101,3.442,1900.8,1900.7,1.06022097]
[1742196590816,4.49427,1900.8,1900.7,0.00790097]
[1742196591018,4.49427,1900.8,1900.7,1.06022097]
[1742196591217,4.49427,1900.8,1900.7,2.45152097]
[1742196591911,4.49427,1900.8,1900.7,1.39920097]
[1742196592308,3.442,1900.8,1900.7,2.45152097]
[1742196594619,1.3541,1900.9,1900.8,1.05227]
[1742196594807,4.7961,1900.9,1900.8,2.44147]
[1742196595610,4.7961,1900.9,1900.8,1.77077]
[1742196596216,5.84831,1900.9,1900.8,0.7185]
[1742196596520,5.84831,1900.9,1900.7,2.45148097]
[1742196596521,1.05227,1900.8,1900.7,1.39920097]
[1742196596717,2.057,1900.8,1900.7,2.45152097]
[1742196598719,3.442,1900.9,1900.8,1.05227]
[1742196599024,4.8126,1900.9,1900.8,3.16567]
[1742196599226,5.86481,1900.9,1900.8,3.16567]
[1742196599819,5.86481,1900.9,1900.8,2.46277]
[1742196600130,5.86481,1900.9,1900.8,1.4105]
[1742196600424,5.95240787,1900.9,1900.8,1.4105]
[1742196600623,5.95240747,1900.9,1900.8,1.4105]
[1742196600827,5.86481,1900.9,1900.8,1.4105]
[1742196601025,4.8126,1900.9,1900.8,2.46277]
[1742196601228,5.86481,1900.9,1900.8,2.46277]
[1742196601526,5.86481,1900.9,1900.8,1.4105]
[1742196601729,4.8126,1900.9,1900.8,2.46277]
[1742196602121,5.86481,1900.9,1900.8,2.46277]
[1742196602321,4.8126,1900.9,1900.8,2.46277]
[1742196604115,4.8126,1900.9,1900.8,3.14587]
[1742196604725,5.89349676,1900.9,1900.8,3.14587]
[1742196604925,6.94570676,1900.9,1900.8,3.14587]
[1742196605127,5.89349676,1900.9,1900.8,3.14587]
[1742196605528,6.94570676,1900.9,1900.8,3.14587]
[1742196605722,5.89349676,1900.9,1900.8,3.14587]
[1742196606343,1.08089676,1900.9,1900.8,3.14587]
[1742196606633,4.52189676,1900.9,1900.8,3.14587]
[1742196606834,3.57068679,1901.0,1900.9,1.05221]
[1742196607032,5.57078679,1901.0,1900.9,2.50051]
[1742196608737,8.77858679,1901.0,1900.9,2.50051]
[1742196608938,5.57078679,1901.0,1900.9,2.50051]
[1742196609829,1.08089676,1901.0,1900.9,2.50051]
[1742196610025,4.52189676,1901.0,1900.9,3.20221]
[1742196610437,1.08089676,1901.0,1900.9,3.20221]
[1742196610827,32.625,1901.1,1900.9,3.20221]
[1742196610828,32.625,1901.1,1901.0,1.05216]
[1742196611022,29.184,1901.1,1901.0,2.36966]
[1742196611732,28.23002883,1901.3,1901.2,1.05205]
[1742196612134,24.78902883,1901.3,1901.2,1.05205]
[1742196612439,3.441,1901.4,1901.3,1.05199]
[1742196612642,0.7039,1901.6,1901.5,1.05188]
[1742196612833,5.19674,1901.6,1901.4,1.0519]
[1742196613137,1.05192,1901.5,1901.3,1.05199]
[1742196613340,3.2078,1901.4,1901.3,2.45529]
[1742196613836,4.25974,1901.4,1901.3,1.4033]
[1742196614041,4.25974,1901.4,1901.1,1.74448]
[1742196614042,1.05202,1901.3,1901.1,1.74448]
[1742196614333,0.6809,1901.3,1901.2,1.4033]
[1742196614539,5.17389,1901.3,1901.2,1.4033]
[1742196614736,5.52828003,1901.3,1901.2,1.4033]
[1742196614931,1.05206,1901.2,1901.0,1.05212]
[1742196615131,5.52832003,1901.3,1901.1,2.4228]
[1742196615344,4.47629003,1901.3,1901.2,2.42275]
[1742196615637,5.52828003,1901.3,1901.2,1.3707]
[1742196615840,4.47629003,1901.3,1901.2,2.42275]
[1742196621240,5.52828003,1901.3,1901.2,1.3707]
[1742196622135,5.52828003,1901.3,1900.9,0.6587]
[1742196622136,1.05207,1901.2,1901.0,1.05213]
[1742196622336,4.25987,1901.2,1901.0,2.47473]
[1742196622539,3.2078,1901.2,1901.1,1.0521]
[1742196622732,3.2078,1901.2,1901.1,2.4747]
[1742196622936,4.25985,1901.2,1901.1,1.4226]
[1742196623332,3.2078,1901.2,1901.1,2.4747]
[1742196623544,3.2078,1901.2,1901.1,1.4226]
[1742196623744,3.56219003,1901.2,1901.1,2.4747]
[1742196624542,4.92339003,1901.2,1901.1,2.4747]
[1742196626347,5.97544003,1901.2,1901.1,1.4226]
[1742196627646,4.92339003,1901.2,1901.1,2.4747]
[1742196628749,5.97544003,1901.2,1901.1,2.4747]
[1742196629349,5.97544003,1901.2,1901.1,1.4226]
[1742196630148,4.92339003,1901.2,1901.1,2.4747]
[1742196630648,5.97544003,1901.2,1901.1,1.4226]
[1742196631148,4.92339003,1901.2,1901.1,2.4747]
[1742196632643,3.56219003,1901.2,1901.1,2.4747]
[1742196634543,4.97119003,1901.2,1901.1,2.4747]
[1742196635151,6.02324003,1901.2,1901.1,1.4226]
[1742196635351,6.68504003,1901.2,1901.1,1.4226]
[1742196636144,7.76513537,1901.2,1901.1,1.4226]
[1742196639361,7.76513537,1901.2,1901.1,2.4747]
[1742196639558,7.76513537,1901.2,1901.1,1.4226]
[1742196642063,4.64228537,1901.2,1901.1,3.161]
[1742196642255,8.08128537,1901.2,1901.1,3.161]
[1742196642557,7.00119003,1901.2,1901.1,3.161]
[1742196643160,8.34259003,1901.2,1901.1,3.161]
[1742196644352,1.69579003,1901.2,1901.1,3.161]
[1742196644557,5.13479003,1901.2,1901.1,3.161]
[1742196647356,4.7804,1901.2,1901.1,3.161]
[1742196650865,9.04025,1901.2,1901.1,2.1089]
[1742196651063,9.75475,1901.2,1901.1,1.4226]
[1742196651261,9.75475,1901.2,1901.1,2.4747]
[1742196651663,10.83578233,1901.2,1901.1,2.4747]
[1742196651861,10.83578233,1901.2,1901.1,1.4226]
[1742196652259,10.83578233,1901.2,1900.8,4.26003]
[1742196652260,1.0522,1901.0,1900.8,4.26003]
[1742196652468,4.61439003,1901.0,1900.9,1.3419]
[1742196652669,8.05339003,1901.0,1900.9,1.3419]
[1742196652970,8.05339003,1901.0,1900.7,0.00790097]
[1742196652971,1.05232,1900.7,1900.6,0.6746]
[1742196653164,4.49132,1900.7,1900.6,0.6746]
[1742196653356,4.49132,1900.7,1900.5,1.71409]
[1742196653559,0.7161,1900.6,1900.5,1.71409]
[1742196654166,0.7161,1900.6,1900.5,0.6617]
[1742196654469,2.1132,1900.6,1900.5,3.05793]
[1742196656062,6.72777003,1900.6,1900.5,1.3438]
[1742196656767,6.81538442,1900.6,1900.5,1.3438]
[1742196656962,6.81538442,1900.6,1900.4,0.00790097]
[1742196657167,2.49483,1900.5,1900.3,2.97061]
[1742196657463,4.8814,1900.4,1900.3,2.97061]
[1742196657669,4.8814,1900.4,1900.3,4.02315]
[1742196660075,3.439,1900.4,1900.3,4.02315]
[1742196660265,3.439,1900.4,1900.3,4.33021]
[1742196660472,3.439,1900.4,1900.3,5.38275]
[1742196661174,4.7601,1900.4,1900.3,5.38275]
[1742196663978,7.9679,1900.4,1900.3,5.38275]
[1742196664170,4.7601,1900.4,1900.3,5.38275]
[1742196665683,5.81259,1900.4,1900.3,4.33021]
[1742196666081,4.7601,1900.4,1900.3,5.38275]
[1742196666869,9.02039,1900.4,1900.3,4.33021]
[1742196667078,7.9679,1900.4,1900.3,5.38275]
[1742196668069,9.02039,1900.4,1900.3,4.33021]
[1742196668878,9.02039,1900.4,1900.3,2.97061]
[1742196669780,9.02039,1900.4,1900.3,4.35141]
[1742196670182,7.9679,1900.4,1900.3,4.35141]
[1742196670383,9.02039,1900.4,1900.3,4.35141]
[1742196671284,4.7601,1900.4,1900.3,4.35141]
[1742196671484,4.7601,1900.4,1900.3,6.10525]
[1742196671674,7.9679,1900.4,1900.3,6.10525]
[1742196672485,9.02039,1900.4,1900.3,5.05271]
[1742196672894,9.02039,1900.4,1900.3,6.10525]
[1742196673087,7.9679,1900.4,1900.3,6.10525]
[1742196673286,9.02039,1900.4,1900.3,5.05271]
[1742196673586,7.9679,1900.4,1900.3,6.10525]
[1742196675883,4.7601,1900.4,1900.3,6.10525]
[1742196676881,7.9679,1900.4,1900.3,6.10525]
[1742196677588,9.02039,1900.4,1900.3,4.35141]
[1742196678289,9.02039,1900.4,1900.3,2.97061]
[1742196678786,1.05266,1900.1,1900.0,0.7055]
[1742196678990,7.69946,1900.1,1900.0,2.1003]
[1742196679293,7.69946,1900.1,1899.9,1.05271]
[1742196679589,7.69946,1900.1,1900.0,1.3948]
[1742196680294,6.6468,1900.1,1900.0,2.44751]
[1742196680588,6.6468,1900.1,1900.0,3.13171]
[1742196682486,7.69946,1900.1,1900.0,2.079]
[1742196682886,8.77978479,1900.1,1900.0,2.079]
[1742196683087,1.05271,1900.0,1899.9,0.00526734]
[1742196683483,7.6995,1900.1,1899.9,0.00526734]
[1742196683685,1.05271,1900.0,1899.9,0.00526734]
[1742196683986,1.05271,1900.0,1899.9,1.34176734]
[1742196684987,1.05271,1900.0,1899.9,0.00526734]
[1742196685193,1.05281,1899.9,1899.6,4.26073]
[1742196685392,1.05281,1899.9,1899.7,1.3858]
[1742196685393,3.439,1899.8,1899.7,1.3858]
[1742196686194,3.439,1899.8,1899.7,2.43868]
[1742196686792,3.439,1899.8,1899.7,1.3858]
[1742196687293,3.439,1899.8,1899.7,1.05288]
[1742196687496,3.439,1899.8,1899.7,3.13908]
[1742196687689,3.439,1899.8,1899.6,3.2078]
[1742196687690,4.49182,1899.8,1899.5,1.05295]
[1742196687895,3.79339003,1899.8,1899.5,3.13915]
[1742196688297,3.79339003,1899.8,1899.6,1.3665]
[1742196688499,4.84626003,1899.8,1899.6,1.3665]
[1742196688798,4.26072,1899.7,1899.5,0.7197]
[1742196689095,4.26072,1899.7,1899.5,2.0862]
[1742196689287,1.05293,1899.6,1899.5,2.0862]
[1742196689483,1.05299,1899.5,1899.3,1.05306]
[1742196689690,3.439,1899.4,1899.2,3.74573]
[1742196689991,3.439,1899.4,1899.3,1.3665]
[1742196690387,3.439,1899.4,1899.3,2.4196]
[1742196690587,3.439,1899.4,1899.3,1.3665]
[1742196691104,3.439,1899.4,1899.3,2.4196]
[1742196693589,4.1022,1899.4,1899.3,2.4196]
[1742196694095,3.439,1899.4,1899.3,2.4196]
[1742196694787,4.7923,1899.4,1899.3,2.4196]
[1742196696297,4.7923,1899.4,1899.3,1.3665]
[1742196696700,4.7923,1899.4,1899.3,2.4196]
[1742196700204,4.7933,1899.4,1899.3,2.4196]
[1742196700402,3.2078,1899.5,1899.4,1.05304]
[1742196700698,1.70519003,1899.6,1899.5,1.05299]
[1742196700904,5.14519003,1899.6,1899.5,2.39509]
[1742196703809,3.79439003,1899.6,1899.5,2.39509]
[1742196705998,3.44,1899.6,1899.5,2.39509]
[1742196706398,4.8104,1899.6,1899.5,2.39509]
[1742196708508,3.44,1899.6,1899.5,2.39509]
[1742196711808,4.8647,1899.6,1899.5,2.39509]
[1742196712005,4.8647,1899.6,1899.5,1.72709]
[1742196712406,5.91763,1899.6,1899.5,1.72709]
[1742196712706,4.8647,1899.6,1899.5,1.72709]
[1742196713607,5.91763,1899.6,1899.5,1.72709]
[1742196713915,4.8647,1899.6,1899.5,1.72709]
[1742196714413,4.8647,1899.6,1899.4,1.4473]
[1742196714414,5.91763,1899.6,1899.4,2.50031]
[1742196714712,3.44,1899.6,1899.5,1.05299]
[1742196714914,3.44,1899.6,1899.5,2.49329]
[1742196715214,4.49293,1899.6,1899.5,2.49329]
[1742196716114,4.49293,1899.6,1899.4,1.05301]
[1742196716318,3.9147,1899.5,1899.3,1.4403]
[1742196716512,3.9147,1899.5,1899.4,1.05304]
[1742196717716,4.26909003,1899.5,1899.4,1.05304]
[1742196718012,4.26909003,1899.5,1899.3,2.49337]
[1742196718221,5.32211003,1899.5,1899.3,2.49338]
[1742196719418,4.26909003,1899.5,1899.4,1.05304]
[1742196719715,4.26909003,1899.5,1899.4,1.3317]
[1742196719716,5.32208003,1899.5,1899.4,1.3317]
[1742196719914,4.26909003,1899.5,1899.4,1.3317]
[1742196720314,4.26909003,1899.5,1899.4,2.38474]
[1742196721517,4.26909003,1899.5,1899.3,1.05306]
[1742196721518,5.32208003,1899.5,1899.3,1.05306]
[1742196721718,1.05304,1899.4,1899.2,1.05311]
[1742196721920,3.439,1899.3,1899.2,2.42871]
[1742196722717,3.439,1899.3,1899.2,3.11401]
[1742196724112,4.26909003,1899.5,1899.4,1.05304]
[1742196724311,7.00119003,1899.5,1899.4,1.05304]
[1742196724720,7.00119003,1899.5,1899.4,1.71334]
[1742196726919,0.35439003,1899.5,1899.4,1.71334]
[1742196727123,3.79339003,1899.5,1899.4,1.71334]
[1742196728622,0.35439003,1899.5,1899.4,1.71334]
[1742196729120,0.35439003,1899.5,1899.4,3.10154]
[1742196729325,3.439,1899.6,1899.5,1.05299]
[1742196729618,3.439,1899.6,1899.5,3.13509]
[1742196731924,3.439,1899.6,1899.5,2.44119]
[1742196733622,4.1649,1899.6,1899.5,2.44119]
[1742196734624,8.7344,1899.6,1899.4,1.05304]
[1742196734818,8.7344,1899.6,1899.2,1.05314]
[1742196734819,1.05307,1899.4,1899.2,1.05314]
[1742196735128,4.7997,1899.3,1899.2,1.05314]
[1742196735321,5.4695,1899.3,1899.2,1.05314]
[1742196736429,5.4695,1899.3,1899.2,2.44124]
[1742196737726,5.4695,1899.3,1899.2,3.16384]
[1742196739227,4.7997,1899.3,1899.2,3.16384]
[1742196739432,0.35439003,1899.5,1899.4,1.05304]
[1742196739732,3.79239003,1899.5,1899.4,1.05304]
[1742196740234,3.79239003,1899.5,1899.4,1.73964]
[1742196740743,5.16479003,1899.5,1899.4,1.73964]
[1742196741127,4.8104,1899.5,1899.4,1.73964]
[1742196743339,4.8104,1899.5,1899.4,1.05304]
[1742196743533,1.05306,1899.4,1899.1,3.2078]
[1742196743739,1.3414,1899.3,1899.2,2.43815]
[1742196744543,2.0062,1899.3,1899.2,2.43815]
[1742196748250,0.35439003,1899.5,1899.3,1.05308]
[1742196748445,6.1239,1899.4,1899.3,2.39648]
[1742196749743,2.0277,1899.4,1899.3,2.39648]
[1742196749944,4.7615,1899.4,1899.3,2.39648]
[1742196751033,0.35439003,1899.5,1899.4,1.05304]
[1742196751247,5.19869003,1899.5,1899.4,3.86194]
[1742196752845,4.8443,1899.5,1899.4,3.86194]
[1742196761246,1.4063,1899.5,1899.4,3.86194]
[1742196761451,4.8433,1899.5,1899.4,3.86194]
[1742196765854,3.437,1899.5,1899.4,3.86194]
[1742196767152,4.7884,1899.6,1899.5,1.05299]
[1742196767353,4.7884,1899.6,1899.5,5.64359]
[1742196770564,4.7884,1899.6,1899.5,2.43579]
[1742196771970,5.4859,1899.6,1899.5,1.05299]
[1742196775167,5.4859,1899.6,1899.5,2.37999]
[1742196776566,5.4859,1899.6,1899.5,1.05299]
[1742196777573,5.4859,1899.6,1899.5,2.50849]
[1742196785287,5.4859,1899.6,1899.5,1.05299]
[1742196785487,6.53883,1899.6,1899.5,1.05299]
[1742196785681,8.6937,1899.6,1899.3,1.05306]
[1742196785882,1.9883,1899.5,1899.3,1.05306]
[1742196786083,1.3301,1899.4,1899.3,1.05306]
[1742196788195,2.38314,1899.4,1899.3,1.05306]
[1742196790190,1.3301,1899.4,1899.3,1.05306]
[1742196790887,1.05189003,1899.6,1899.5,1.05299]
[1742196791093,4.48789003,1899.6,1899.5,1.05299]
[1742196791288,3.79039003,1899.6,1899.5,1.05299]
[1742196792283,5.22339003,1899.6,1899.5,2.49749]
[1742196793895,4.869,1899.6,1899.5,2.49749]
[1742196794893,0.00790097,1899.7,1899.6,1.05293]
[1742196795094,3.44390097,1899.7,1899.6,2.48073]
[1742196796195,4.83020097,1899.7,1899.6,2.48073]
[1742196798094,5.88308097,1899.7,1899.6,2.48073]
[1742196798290,5.88308097,1899.7,1899.5,1.05295]
[1742196798496,1.404,1899.6,1899.5,2.46265]
[1742196800201,2.45693,1899.6,1899.5,2.46265]
[1742196800398,1.404,1899.6,1899.5,2.46265]
[1742196803092,4.52547547,1899.7,1899.6,1.05293]
[1742196803397,4.86740097,1899.7,1899.6,2.44393]
[1742196807497,1.43140097,1899.7,1899.6,2.44393]
[1742196807702,4.86640097,1899.7,1899.6,2.44393]
[1742196809296,0.00790097,1899.7,1899.6,2.44393]
[1742196809497,3.435,1899.9,1899.7,1.05288]
[1742196809698,4.5163973,1899.9,1899.8,3.80522]
[1742196809899,5.8335973,1899.9,1899.8,3.80522]
[1742196810293,4.7522,1899.9,1899.8,3.80522]
[1742196810597,1.3172,1899.9,1899.8,3.80522]
[1742196810907,54.0009298,1900.0,1899.9,1.05277]
[1742196811113,54.0009298,1900.0,1899.9,2.40967]
[1742196811501,23.7241098,1900.0,1899.9,2.40967]
[1742196811701,20.44640756,1900.0,1899.9,8.11747]
[1742196813105,0.00790097,1900.0,1899.9,8.11747]
[1742196814514,0.00790097,1900.0,1899.9,5.61747]
[1742196814912,9.7e-07,1900.0,1899.9,5.61747]
[1742196815706,9.7e-07,1900.0,1899.9,8.11747]
[1742196817512,9.7e-07,1900.0,1899.9,5.61747]
[1742196824826,9.7e-07,1900.0,1899.9,1.05277]
[1742196825125,0.68040097,1900.0,1899.9,1.05277]
[1742196825428,2.09450097,1900.0,1899.9,1.05277]
[1742196826916,4.84710097,1900.0,1899.9,1.05277]
[1742196831125,4.84710097,1900.0,1899.9,2.51007]
[1742196833628,1.41410097,1900.0,1899.9,3.93567]
[1742196837427,1.41410097,1900.0,1899.9,3.22917]
[1742196842934,1.41410097,1900.0,1899.9,2.51007]
[1742196849644,9.7e-07,1900.0,1899.9,2.51007]
[1742196850737,9.7e-07,1900.0,1899.9,5.01007]
[1742196851546,9.7e-07,1900.0,1899.9,2.51007]
[1742196861652,0.6609,1900.4,1900.3,1.05254]
[1742196862649,0.6609,1900.4,1900.3,2.42844]
[1742196864043,0.6609,1900.4,1900.3,3.10354]
[1742196864544,0.00790097,1900.5,1900.4,1.05249]
[1742196864742,9.7e-07,1900.5,1900.4,2.46009]
[1742196865747,9.7e-07,1900.6,1900.5,1.05243]
[1742196865948,9.7e-07,1900.6,1900.5,4.93803]
[1742196867540,1.94e-06,1900.7,1900.6,1.05238]
[1742196867846,1.94e-06,1900.7,1900.6,3.05068]
[1742196868349,1.94e-06,1900.7,1900.6,6.48068]
[1742196871043,1.94e-06,1900.7,1900.6,8.98068]
[1742196871354,2.7599,1901.4,1901.3,1.05199]
[1742196875961,2.7599,1901.4,1901.2,0.00790097]
[1742196876154,4.7952,1901.3,1901.2,0.00790097]
[1742196876354,5.84721,1901.3,1901.0,4.25994]
[1742196876558,1.3662,1901.2,1901.0,4.25994]
[1742196876961,2.41825,1901.2,1901.0,3.2078]
[1742196877156,1.05213,1901.1,1900.7,3.2078]
[1742196877359,5.14416,1901.0,1900.9,0.00790097]
[1742196877661,1.05222,1900.9,1900.7,4.26009]
[1742196877849,1.3662,1900.9,1900.8,1.05227]
[1742196878044,1.3662,1900.9,1900.7,3.2078]
[1742196878249,2.41845,1900.9,1900.7,4.2601]
[1742196879258,7.42839003,1900.9,1900.6,0.00790097]
[1742196879456,3.2078,1900.7,1900.6,1.05517097]
[1742196879650,6.6368,1900.7,1900.6,1.05517097]
[1742196879854,11.58682,1900.7,1900.6,0.00280097]
[1742196880257,9.08682,1900.7,1900.6,0.00280097]
[1742196881657,11.58682,1900.7,1900.6,0.00280097]
[1742196882163,1.0524,1900.6,1900.4,1.05248]
[1742196882362,5.105,1900.5,1900.4,1.05248]
[1742196882757,1.8972,1900.5,1900.4,1.05248]
[1742196882963,1.4046,1900.5,1900.4,1.05248]
[1742196885363,1.4046,1900.5,1900.4,2.40048]
[1742196886964,4.6124,1900.5,1900.3,1.06041097]
[1742196887169,3.429,1900.4,1900.3,1.06041097]
[1742196887474,4.7662,1900.4,1900.3,1.06041097]
[1742196894684,4.7662,1900.4,1900.3,0.00790097]
[1742196895186,4.7662,1900.4,1900.3,1.06044097]
[1742196898682,5.81869,1900.4,1900.3,1.06044097]
[1742196898881,4.7662,1900.4,1900.3,1.06044097]
[1742196902391,5.81869,1900.4,1900.3,0.00790097]
[1742196902689,4.7662,1900.4,1900.3,1.06044097]
[1742196902889,5.81869,1900.4,1900.3,1.34030097]
[1742196903792,9.02649,1900.4,1900.3,2.39284097]
[1742196904785,4.7662,1900.4,1900.3,2.39284097]
[1742196904986,0.00790097,1900.5,1900.4,1.05249]
[1742196905291,4.48933097,1900.5,1900.4,3.19249]
[1742196905485,5.85893097,1900.5,1900.4,3.19249]
[1742196905791,4.80650097,1900.5,1900.4,3.19249]
[1742196906488,5.85893097,1900.5,1900.4,2.14]
[1742196907289,1.05249,1900.4,1900.3,0.00790097]
[1742196907493,5.71929,1900.4,1900.3,0.00790097]
[1742196908195,5.71929,1900.4,1900.3,1.45760097]
[1742196911489,4.6668,1900.4,1900.3,2.51014097]
[1742196912896,5.71929,1900.4,1900.3,1.45760097]
[1742196913704,5.71929,1900.4,1900.3,2.51014097]
[1742196913997,4.6668,1900.4,1900.3,2.51014097]
[1742196914702,5.71929,1900.4,1900.3,2.51014097]
[1742196915200,5.71929,1900.4,1900.3,1.45760097]
[1742196915899,5.71929,1900.4,1900.3,2.51014097]
[1742196916098,5.71929,1900.4,1900.3,1.45760097]
[1742196916302,5.71929,1900.4,1900.3,2.51014097]
[1742196918605,4.6668,1900.4,1900.3,2.51014097]
[1742196919203,5.71929,1900.4,1900.3,2.51014097]
[1742196922705,5.71929,1900.4,1900.3,1.45760097]
[1742196922897,5.71929,1900.4,1900.3,2.51014097]
[1742196923403,5.71929,1900.4,1900.3,1.45760097]
[1742196923912,5.71929,1900.4,1900.3,2.51014097]
[1742196924105,5.71929,1900.4,1900.3,1.45760097]
[1742196924810,8.70988549,1900.4,1899.9,1.05274]
[1742196925003,4.2605,1900.1,1900.0,1.3828]
[1742196925202,7.6885,1900.1,1900.0,1.3828]
[1742196926199,6.6358,1900.1,1899.5,3.2078]
[1742196926402,1.05284,1899.8,1899.7,3.11738]
[1742196926599,4.48084,1899.8,1899.7,2.0645]
[1742196926800,4.7758,1899.8,1899.1,8.63295]
[1742196927004,1.05296,1899.6,1899.4,1.05301]
[1742196927317,4.7758,1899.5,1899.4,1.05301]
[1742196927510,9.03662,1899.5,1899.3,1.73478]
[1742196927709,1.3464,1899.4,1899.3,1.73478]
[1742196932308,1.3464,1899.4,1899.3,0.6817]
[1742196932814,2.39944,1899.4,1899.3,2.0612]
[1742196933321,1.3464,1899.4,1899.3,2.0612]
[1742196935514,8.0053,1899.2,1899.1,2.41401]
[1742196936217,4.7975,1899.2,1899.1,2.41401]
[1742196936715,8.0053,1899.2,1899.1,2.41401]
[1742196937013,1.3695,1899.2,1899.1,2.41401]
[1742196937218,1.3257,1899.3,1899.2,1.05315]
[1742196937415,1.3257,1899.3,1899.2,2.49305]
[1742196937622,4.7547,1899.3,1899.2,2.49305]
[1742196937819,3.429,1899.3,1899.2,2.49305]
[1742196938616,3.428,1899.3,1899.2,2.49302]
[1742196938923,4.7537,1899.3,1899.2,2.49302]
[1742196939124,3.428,1899.3,1899.2,2.49302]
[1742196941023,3.429,1899.3,1899.2,2.49303]
[1742196941524,3.429,1899.3,1899.2,1.4399]
[1742196941821,4.7872,1899.3,1899.2,2.49305]
[1742196942221,4.7872,1899.3,1899.2,1.4399]
[1742196942414,4.7872,1899.3,1899.2,2.49305]
[1742196949823,4.7872,1899.3,1899.1,1.3608]
[1742196950026,1.4529,1899.2,1899.1,2.41401]
[1742196950219,2.50605,1899.2,1899.0,2.47682]
[1742196950725,1.4529,1899.1,1899.0,2.47682]
[1742196952423,2.50611,1899.1,1899.0,2.47682]
[1742196952624,1.4529,1899.1,1899.0,2.47682]
[1742196961533,3.56219003,1899.4,1899.3,1.0531]
[1742196961834,8.38539003,1899.4,1899.3,1.0531]
[1742196966138,8.38539003,1899.4,1899.1,1.3814]
[1742196966339,2.0229,1899.3,1899.2,1.05314]
[1742196966643,1.05315,1899.2,1899.1,2.43457]
[1742196966843,1.3226,1899.2,1899.1,1.05317]
[1742196967444,2.37575,1899.2,1899.1,1.05317]
[1742196967632,1.3226,1899.2,1899.1,1.05317]
[1742196968647,1.3226,1899.2,1899.1,1.73227]
[1742196968944,2.37575,1899.2,1899.1,1.73227]
[1742196969446,1.3226,1899.2,1899.1,1.73227]
[1742196970948,4.5304,1899.2,1899.0,2.47363]
[1742196971246,3.428,1899.1,1899.0,2.47363]
[1742196971444,5.79941,1899.1,1899.0,2.47363]
[1742196971640,4.7462,1899.1,1899.0,2.47363]
[1742196971834,5.79941,1899.1,1898.9,1.77429]
[1742196972038,1.3182,1899.0,1898.9,3.22379]
[1742196975236,2.37147,1899.0,1898.9,2.1705]
[1742196975549,2.37147,1899.0,1898.9,0.721]
[1742196976648,5.2018,1899.0,1898.6,3.18345]
[1742196976840,1.3191,1898.9,1898.6,3.18345]
[1742196977037,1.3191,1898.9,1898.6,2.13]
[1742196977038,1.05343,1898.7,1898.6,2.13]
[1742196977244,1.05349,1898.6,1898.5,1.0535]
[1742196977449,5.58039,1898.6,1898.5,2.4837]
[1742196977747,4.5269,1898.6,1898.5,2.4837]
[1742196978948,5.58039,1898.6,1898.4,1.76356]
[1742196979148,5.80064,1898.5,1898.4,3.19376]
[1742196979645,5.80064,1898.5,1898.3,0.6998]
[1742196979646,1.0536,1898.4,1898.3,0.6998]
[1742196979847,5.6181,1898.4,1898.3,0.6998]
[1742196980041,4.5645,1898.4,1898.3,0.6998]